fUST/lending_fUST_20250506
["ID","MTS","AMOUNT","RATE_DAILY","PERIOD"]
[360050294,1746521432985,-708.0,0.00017571,2]
[360050295,1746521432995,-1250.40419862,0.00017571,2]
[360050296,1746521433126,-990.59580138,0.00017571,2]
[360050297,1746521433136,-403.89390722,0.00017764,2]
[360050298,1746521433147,-209.4904867,0.00017893,2]
[360050299,1746521433157,-468.66977092,0.00017931,2]
[360050300,1746521433173,-31.33022908,0.00017931,2]
[360050301,1746521433183,-164.4895309,0.00017945,2]
[360050302,1746521433193,-151.0,0.00018,2]
[360050303,1746521433205,-160.0,0.00018306,2]
[360050304,1746521433215,-160.0,0.00018311,2]
[360050305,1746521433227,-160.0,0.00018311,2]
[360050306,1746521433238,-160.0,0.00018311,2]
[360050307,1746521433248,-212.03916285,0.00018311,2]
[360050308,1746521433258,-160.0,0.00018311,2]
[360050309,1746521433269,-160.0,0.00018337,2]
[360050310,1746521433281,-1000.0,0.00018629,2]
[360050311,1746521433292,-1000.0,0.00018629,2]
[360050312,1746521433303,-1000.0,0.00018629,2]
[360050313,1746521433313,-400.52105796,0.0001882,2]
[360050314,1746521433324,-500.0,0.0001882,2]
[360050315,1746521433334,-231.29343791,0.00018877,2]
[360050316,1746521433344,-1000.0,0.00018879,2]
[360050317,1746521433354,-1000.0,0.00018879,2]
[360050318,1746521433364,-1000.0,0.00018879,2]
[360050319,1746521433375,-1000.0,0.00018879,2]
[360050320,1746521433386,-1000.0,0.00018879,2]
[360050321,1746521433396,-387.10536113,0.00018879,2]
[360050322,1746521433407,-1000.0,0.00018879,2]
[360050323,1746521433417,-617.70060065,0.00018879,2]
[360050324,1746521433427,-1850.69075968,0.000189,2]
[360050325,1746521433436,-1000.0,0.00018913,2]
[360050326,1746521433446,-1000.0,0.00018913,2]
[360050327,1746521433456,-554.87024308,0.00018929,2]
[360050328,1746521433467,-1000.0,0.00018929,2]
[360050329,1746521433476,-281.32466534,0.00018929,2]
[360050330,1746521433487,-1000.0,0.00018929,2]
[360050331,1746521433498,-1125.31519399,0.00018929,2]
[360050332,1746521433508,-1000.0,0.00018929,2]
[360050333,1746521433518,-1000.0,0.00018929,2]
[360050334,1746521433528,-1000.0,0.00018929,2]
[360050335,1746521433538,-1000.0,0.00018929,2]
[360050336,1746521433550,-1000.0,0.00018929,2]
[360050337,1746521433560,-166.516,0.00019178,2]
[360050338,1746521433569,-500.0,0.00019178,2]
[360050339,1746521433579,-500.0,0.00019178,2]
[360050340,1746521433589,-500.0,0.00019178,2]
[360050341,1746521433599,-500.0,0.00019178,2]
[360050342,1746521433610,-500.0,0.00019178,2]
[360050343,1746521433621,-302.02145608,0.00019178,2]
[360050344,1746521433631,-500.0,0.00019178,2]
[360050345,1746521433641,-500.0,0.00019178,2]
[360050346,1746521433651,-405.109903,0.00019178,2]
[360050347,1746521433661,-500.0,0.00019205,2]
[360050348,1746521433671,-500.0,0.00019205,2]
[360050349,1746521433681,-569.88322035,0.00019205,2]
[360050350,1746521433690,-500.0,0.00019205,2]
[360050351,1746521433700,-500.0,0.00019205,2]
[360050352,1746521433709,-500.0,0.00019233,2]
[360050353,1746521433719,-510.49053852,0.00019233,2]
[360050354,1746521433729,-17.29863948,0.00019233,2]
[360050361,1746521438309,-47409.97757935,0.0001345,2]
[360050362,1746521438320,-482.70136052,0.00019233,2]
[360050363,1746521438329,-506.4494266,0.00019233,2]
[360050364,1746521438339,-500.0,0.0001926,2]
[360050365,1746521438348,-500.0,0.0001926,2]
[360050366,1746521438357,-880.66981072,0.00019263,2]
[360050367,1746521438367,-500.0,0.00019288,2]
[360050368,1746521438376,-500.0,0.00019288,2]
[360050369,1746521438385,-250.45639246,0.00019315,2]
[360050370,1746521438395,-485.09308991,0.00019315,2]
[360050371,1746521438404,-45974.04157339,0.00019329,2]
[360050372,1746521438413,-400.92,0.00019363,3]
[360050373,1746521438423,-200.46,0.00019363,3]
[360050374,1746521438432,-208.46532739,0.00019373,2]
[360050375,1746521438441,-601.38,0.00019388,3]
[360050376,1746521438451,-45531.86068291,0.00019398,2]
[360050377,1746521438480,-17980.93034034,0.00019398,2]
[360050381,1746521441157,-167.55944507,0.00017571,2]
[360050394,1746521443506,-236.44055493,0.00017571,2]
[360050395,1746521443517,-1049.8543219,0.00018299,2]
[360050396,1746521443527,-4286.05706234,0.00019398,2]
[360050397,1746521443536,-1708.07461101,0.00019414,2]
[360050398,1746521443546,-880.66981069,0.00019416,2]
[360050399,1746521443561,-880.66981069,0.00019568,2]
[360050400,1746521443570,-682.64884437,0.00019586,2]
[360050401,1746521443581,-615.87836199,0.00019695,2]
[360050402,1746521443592,-880.66981069,0.00019721,2]
[360050403,1746521443603,-1000.0,0.00019729,5]
[360050404,1746521443613,-9554.32736741,0.000198,2]
[360050405,1746521443625,-73991.67263259,0.000198,2]
[360050406,1746521443635,-500.0,0.00019873,2]
[360050407,1746521443645,-500.0,0.00019873,2]
[360050408,1746521443655,-503.0155295,0.00019873,2]
[360050409,1746521443665,-500.0,0.00019873,2]
[360050410,1746521443674,-500.0,0.00019873,2]
[360050411,1746521443685,-263.61989077,0.00019873,2]
[360050412,1746521443695,-500.0,0.00019873,2]
[360050413,1746521443705,-880.66981069,0.00019873,2]
[360050414,1746521443715,-37921.88762773,0.000199,2]
[360050415,1746521443729,-27411.86610422,0.000199,2]
[360050431,1746521504206,-643.0,0.00011643,2]
[360050432,1746521508947,-357.0,0.00011643,2]
[360050433,1746521564661,150.0,0.00023,120]
[360050435,1746521576907,-266.73976455,0.00011643,2]
[360050437,1746521589682,-733.26023545,0.00011643,2]
[360050441,1746521849174,12580.54,0.00021,10]
[360050442,1746521891050,1199.9,0.00021,10]
[360050468,1746522404256,1100.0,0.00022,30]
[360050469,1746522404645,1100.0,0.00022,30]
[360050470,1746522405043,1100.0,0.00022,30]
[360050471,1746522405459,1100.0,0.00022,30]
[360050472,1746522405750,1100.0,0.00022,30]
[360050473,1746522406177,1100.0,0.00022,30]
[360050474,1746522406848,1100.0,0.00022,30]
[360050478,1746522548186,-1605.48028086,0.00012045,2]
[360050486,1746522632470,-3773.48524482,0.00012045,2]
[360050487,1746522632480,-278.00394718,0.00012145,2]
[360050488,1746522632489,-300.0,0.00012242,2]
[360050489,1746522632499,-275.0,0.00012243,2]
[360050490,1746522632508,-300.0,0.00012243,2]
[360050491,1746522632517,-300.0,0.00012243,2]
[360050492,1746522632527,-1200.0,0.00012243,2]
[360050493,1746522632536,-470.7153703,0.00012244,2]
[360050494,1746522632548,-500.0,0.00012244,2]
[360050495,1746522632558,-500.0,0.00012244,2]
[360050496,1746522632569,-500.0,0.00012244,2]
[360050497,1746522632579,-500.0,0.00012244,2]
[360050498,1746522632588,-500.0,0.00012244,2]
[360050499,1746522632598,-364.07371564,0.00012244,2]
[360050500,1746522632608,-163.59994443,0.00012244,2]
[360050501,1746522632619,-1128.08576489,0.00012245,2]
[360050502,1746522632628,-500.0,0.00012347,2]
[360050503,1746522632638,-500.0,0.00012347,2]
[360050504,1746522632648,-500.0,0.00012347,2]
[360050505,1746522632658,-500.0,0.00012347,2]
[360050506,1746522632667,-500.0,0.00012347,2]
[360050507,1746522632677,-1000.0,0.00012347,2]
[360050508,1746522632687,-500.0,0.0001245,2]
[360050509,1746522632697,-500.0,0.0001245,2]
[360050510,1746522632706,-500.0,0.0001245,2]
[360050511,1746522632715,-500.0,0.0001245,2]
[360050512,1746522632726,-208.46532739,0.0001248,2]
[360050513,1746522632735,-435.12434484,0.000125,2]
[360050514,1746522632745,-316.17459521,0.00012599,2]
[360050515,1746522632755,-185.82365609,0.00012599,2]
[360050516,1746522632763,-500.0,0.00012599,2]
[360050517,1746522632773,-530.46636881,0.00012599,2]
[360050518,1746522632782,-420.0,0.00013437,2]
[360050519,1746522632791,-875.0,0.00013467,2]
[360050520,1746522632801,-5521.1730765,0.00013597,2]
[360050521,1746522632810,-323.28339,0.00013699,2]
[360050522,1746522632821,-500.0,0.00013699,2]
[360050523,1746522632830,-152.0,0.00014358,2]
[360050524,1746522632839,-234.0,0.00014747,2]
[360050525,1746522632849,-160.0,0.00015,2]
[360050526,1746522632859,-3539.99603328,0.00015801,2]
[360050527,1746522632875,-5798.74597882,0.00015801,2]
[360050528,1746522632884,-192.7090376,0.00016608,2]
[360050529,1746522632894,-150.0,0.00017571,2]
[360050530,1746522632903,-546.0,0.00017571,2]
[360050531,1746522632912,-2241.0,0.00017571,2]
[360050532,1746522632922,-708.0,0.00017571,2]
[360050533,1746522632931,-404.0,0.00017571,2]
[360050534,1746522632941,-500.0,0.00017929,2]
[360050535,1746522632951,-509.24005664,0.00017929,2]
[360050536,1746522632960,-1000.0,0.00017929,2]
[360050537,1746522632970,-1000.0,0.00017929,2]
[360050538,1746522632979,-362.18997824,0.00017929,2]
[360050539,1746522632991,-637.81002176,0.00017929,2]
[360050540,1746522633000,-500.0,0.00017945,2]
[360050541,1746522633010,-160.0,0.00018221,2]
[360050542,1746522633019,-160.0,0.00018226,2]
[360050543,1746522633029,-160.0,0.00018226,2]
[360050544,1746522633039,-212.03916285,0.00018226,2]
[360050545,1746522633048,-163.59994443,0.00018716,2]
[360050546,1746522633058,-500.0,0.00018816,2]
[360050547,1746522633068,-166.516,0.000189,2]
[360050548,1746522633078,-159.532854,0.00018912,3]
[360050549,1746522633087,-3392.46708472,0.00019,2]
[360050550,1746522633104,-8911.23291528,0.00019,2]
[360050551,1746522633115,-82420.24651704,0.00019116,2]
[360050552,1746522633127,-13303.60485993,0.00019116,2]
[360050553,1746522633138,-1040.75891475,0.00019116,2]
[360050569,1746522638396,-755640.15783613,0.00019116,2]
[360050570,1746522638448,-97522.4976639,0.00019116,2]
[360050571,1746522638554,-2103.38853811,0.00019116,2]
[360050596,1746522640693,-772.79413623,0.00012045,2]
[360051441,1746522890377,1000.0,0.00021,10]
[360051450,1746523051929,-785.98575332,0.00011,2]
[360051452,1746523062041,-300.0,0.00011,2]
[360051453,1746523073031,-1146.44091101,0.00011,2]
[360051454,1746523120820,-382.99783694,0.00010999,2]
[360051455,1746523123280,-500.0,0.00010999,2]
[360051456,1746523124231,-263.44307407,0.00010999,2]
[360051457,1746523127636,-348.03479221,0.00010999,2]
[360051458,1746523127672,-198.4061188,0.00010999,2]
[360051459,1746523131071,-300.0,0.00010999,2]
[360051460,1746523133738,-300.0,0.00010976,2]
[360051461,1746523144296,-300.0,0.00010975,2]
[360051462,1746523147609,-182.08292402,0.00010976,2]
[360051463,1746523157338,-152.44023618,0.00010976,2]
[360051464,1746523162255,-500.0,0.00010976,2]
[360051466,1746523168614,-334.99457705,0.00010976,2]
[360051468,1746523172548,-300.0,0.00010976,2]
[360051469,1746523177460,-451.39263949,0.00010976,2]
[360051471,1746523191978,-458.81423132,0.00010976,2]
[360051472,1746523204206,-198.17130089,0.00010975,2]
[360051473,1746523209908,-101.82869911,0.00010975,2]
[360051474,1746523209931,-56.2442339,0.00010975,2]
[360051475,1746523220307,-243.7557661,0.00010975,2]
[360051476,1746523220329,-56.2442339,0.00010975,2]
[360051477,1746523223172,-155.0,0.00010975,2]
[360051478,1746523228739,-88.7557661,0.00010975,2]
[360051479,1746523228762,-66.2442339,0.00010975,2]
[360051480,1746523232262,-233.7557661,0.00010975,2]
[360051481,1746523232285,-221.78865665,0.00010975,2]
[360051482,1746523234404,-219.20304737,0.00010975,2]
[360051483,1746523238860,-300.0,0.00010975,2]
[360051484,1746523246080,-459.00829598,0.00010975,2]
[360051485,1746523246102,-300.0,0.00010975,2]
[360051486,1746523246364,-151.94940567,0.00010976,2]
[360051487,1746523247386,-151.94940567,0.00010976,2]
[360051489,1746523267880,-204.795082,0.00010904,2]
[360051490,1746523267902,-300.0,0.00010975,2]
[360051491,1746523267924,-310.34524237,0.00010976,2]
[360051492,1746523267966,204.795082,0.00010904,61]
[360051493,1746523268074,204.795082,0.00010904,120]
[360051494,1746523279808,-300.0,0.00010976,2]
[360051495,1746523285281,-204.795082,0.00010976,2]
[360051496,1746523304160,-191.07155604,0.00010976,2]
[360051497,1746523319756,-272.09013115,0.00010975,2]
[360051498,1746523319779,-227.90986885,0.00010975,2]
[360051499,1746523330481,-272.09013115,0.00010975,2]
[360051500,1746523330506,-36.83831281,0.00010975,2]
[360051501,1746523341041,-156.92844396,0.00010974,2]
[360051502,1746523344570,-204.87321133,0.000108,2]
[360051503,1746523360895,-189.27317434,0.00010799,2]
[360051509,1746523387537,-189.27317434,0.00010798,2]
[360051510,1746523393364,-110.72682566,0.00010798,2]
[360051511,1746523393594,-115.8279568,0.00010799,2]
[360051512,1746523396657,-19.36210913,0.00010799,2]
[360051513,1746523396680,-168.32770248,0.00010799,2]
[360051514,1746523399125,-224.97141973,0.00010799,2]
[360051515,1746523401323,-106.70087779,0.00010799,2]
[360051516,1746523401347,-90.41022108,0.00010799,2]
[360051525,1746523421585,-100.05287072,0.00010799,2]
[360051526,1746523421608,-249.81518692,0.00010799,2]
[360051527,1746523428455,-129.31480871,0.00010799,2]
[360051528,1746523428481,-46.69175129,0.00010799,2]
[360051529,1746523431334,-212.70036538,0.00010799,2]
[360051531,1746523457058,-212.70036538,0.00010799,2]
[360051532,1746523460020,-191.07155604,0.00010799,2]
[360051533,1746523460043,-108.92844396,0.00010799,2]
[360051534,1746523463048,-24.16573573,0.00010799,2]
[360051535,1746523463073,-127.83426427,0.00010799,2]
[360051536,1746523471161,-198.51022503,0.00010799,2]
[360051537,1746523474522,-173.6555107,0.00010799,2]
[360051538,1746523474546,-173.80515871,0.00010799,2]
[360051539,1746523478492,-158.74837362,0.00010799,2]
[360051541,1746523487088,-231.51349889,0.00010799,2]
[360051542,1746523487121,-15.22804202,0.00010799,2]
[360051544,1746523490924,-202.32513648,0.00010799,2]
[360051545,1746523493211,32291.63050978,0.00022,30]
[360051546,1746523497749,-282.4468215,0.00010799,2]
[360051547,1746523497772,-110.9431785,0.00010799,2]
[360051548,1746523505581,-300.0,0.00010798,2]
[360051549,1746523513532,-500.0,0.00010798,2]
[360051550,1746523513561,-162.87693536,0.00010798,2]
[360051551,1746523525406,-77.26244862,0.00010798,2]
[360051552,1746523525434,-148.45424728,0.00010799,2]
[360051553,1746523525468,-431.45257169,0.00010799,2]
[360051557,1746523545215,-192.14655822,0.00010798,2]
[360051558,1746523552385,-192.14655822,0.00010798,2]
[360051559,1746523556132,-115.70688356,0.00010798,2]
[360051560,1746523556155,-106.64935399,0.00010798,2]
[360051561,1746523563430,-151.0,0.00010798,2]
[360051562,1746523565619,-220.37099601,0.00010798,2]
[360051563,1746523569058,-21.97965,0.00010798,2]
[360051564,1746523569081,-278.9830732,0.00010975,2]
[360051565,1746523578480,-21.0169268,0.00010975,2]
[360051566,1746523578504,-278.9830732,0.00010976,2]
[360051568,1746523583396,-1034.75211443,0.00010976,2]
[360051569,1746523584466,-734.75211443,0.00010976,2]
[360051570,1746523605479,-500.0,0.00010975,2]
[360051571,1746523605500,-112.90142289,0.00010975,2]
[360051572,1746523623631,-73.84326495,0.00010975,2]
[360051573,1746523623656,-91.75422064,0.00010975,2]
[360051574,1746523631999,-165.59748559,0.00010975,2]
[360051575,1746523635405,-98.41349131,0.00010975,2]
[360051576,1746523635428,-54.70464712,0.00010975,2]
[360051577,1746523643212,-196.48155407,0.00010975,2]
[360051578,1746523643235,-134.2141734,0.00010975,2]
[360051579,1746523644297,-86.34884742,0.00010975,2]
[360051580,1746523644320,-91.22874162,0.00010975,2]
[360051582,1746523654618,-119.82528447,0.00010975,2]
[360051583,1746523654643,-36.66222431,0.00010975,2]
[360051584,1746523657515,-158.59444123,0.00010975,2]
[360051585,1746523667782,-221.54505531,0.00010975,2]
[360051586,1746523671161,-83.19827915,0.00010975,2]
[360051587,1746523671194,-94.21096971,0.00010975,2]
[360051588,1746523676356,-259.95929438,0.00010975,2]
[360051589,1746523680282,-145.82973591,0.00010975,2]
[360051590,1746523680314,-27.3538068,0.00010975,2]
[360051591,1746523684331,-300.0,0.00010974,2]
[360051594,1746523745328,-300.0,0.00010974,2]
[360051595,1746523747654,-250.0,0.00010975,2]
[360051596,1746523749913,-222.6461932,0.00010975,2]
[360051597,1746523749945,-27.3538068,0.00010975,2]
[360051598,1746523753198,-154.87772921,0.00010975,2]
[360051600,1746523774348,1739.9848481,0.0002,30]
[360051644,1746523832567,-259.9289717,0.00010959,2]
[360051647,1746523832577,-300.0,0.00010974,2]
[360051649,1746523832588,-317.76846399,0.00010975,2]
[360051651,1746523832597,-500.0,0.00010975,2]
[360051653,1746523832607,-500.0,0.00010975,2]
[360051655,1746523832616,-500.0,0.00010975,2]
[360051657,1746523832626,-500.0,0.00010975,2]
[360051659,1746523832635,-384.63643735,0.00010975,2]
[360051661,1746523832644,-500.0,0.00010975,2]
[360051663,1746523832653,-500.0,0.00010975,2]
[360051665,1746523832663,-500.0,0.00010975,2]
[360051667,1746523832672,-500.0,0.00010975,2]
[360051669,1746523832682,-500.0,0.00010975,2]
[360051671,1746523832694,-500.0,0.00010975,2]
[360051672,1746523832703,-500.0,0.00010975,2]
[360051675,1746523832713,-500.0,0.00010975,2]
[360051676,1746523832722,-500.0,0.00010975,2]
[360051678,1746523832733,-308.17269486,0.00010975,2]
[360051682,1746523832754,-191.82730514,0.00010975,2]
[360051684,1746523832764,-500.0,0.00010975,2]
[360051686,1746523832774,-500.0,0.00010975,2]
[360051688,1746523832784,-500.0,0.00010975,2]
[360051690,1746523832793,-500.0,0.00010975,2]
[360051692,1746523832803,-500.0,0.00010975,2]
[360051694,1746523832812,-500.0,0.00010975,2]
[360051696,1746523832821,-500.0,0.00010975,2]
[360051716,1746523833006,-500.0,0.00010975,2]
[360051718,1746523833016,-500.0,0.00010975,2]
[360051720,1746523833027,-500.0,0.00010975,2]
[360051722,1746523833036,-318.71562402,0.00010975,2]
[360051724,1746523833046,-487.18323625,0.00010975,2]
[360051726,1746523833055,-158.59444123,0.00010975,2]
[360051728,1746523833065,-500.0,0.00010975,2]
[360051730,1746523833074,-8234.3194564,0.00010976,2]
[360051733,1746523833087,-1019.6261697,0.00010976,2]
[360052020,1746523838492,-1414.02,0.00010976,2]
[360052021,1746523838504,-410.66926668,0.00010976,2]
[360052022,1746523838545,-799.30268855,0.00010976,2]
[360052023,1746523838554,-978.98178556,0.00011,2]
[360052024,1746523838566,-1287.64100471,0.00011,2]
[360052025,1746523838576,-500.0,0.0001138,2]
[360052026,1746523838586,-500.0,0.00011413,2]
[360052027,1746523838595,-500.0,0.00011414,2]
[360052028,1746523838604,-500.0,0.00011414,2]
[360052029,1746523838613,-500.0,0.000115,2]
[360052030,1746523838622,-500.0,0.000115,2]
[360052031,1746523838630,-500.0,0.000115,2]
[360052032,1746523838639,-500.0,0.000115,2]
[360052033,1746523838649,-500.0,0.000115,2]
[360052034,1746523838658,-425.38354402,0.000115,2]
[360052035,1746523838668,-4795.89484343,0.00011898,2]
[360052036,1746523838677,-400.52105796,0.0001196,2]
[360052037,1746523838687,-500.0,0.00011973,2]
[360052038,1746523838699,-500.0,0.00011973,2]
[360052039,1746523838709,-500.0,0.00011973,2]
[360052040,1746523838719,-500.0,0.00011973,2]
[360052041,1746523838728,-500.0,0.00011973,2]
[360052042,1746523838739,-500.0,0.00011973,2]
[360052043,1746523838748,-500.0,0.00011973,2]
[360052044,1746523838758,-500.0,0.00011973,2]
[360052045,1746523838769,-500.0,0.00011973,2]
[360052046,1746523838780,-500.0,0.00011973,2]
[360052047,1746523838789,-500.0,0.00011973,2]
[360052048,1746523838798,-500.0,0.00011973,2]
[360052049,1746523838808,-500.0,0.00011973,2]
[360052050,1746523838817,-500.0,0.00011973,2]
[360052051,1746523838825,-261.55051825,0.00011973,2]
[360052239,1746523841987,-449.30250992,0.000115,2]
[360052245,1746523843659,-32.76490369,0.000115,2]
[360053917,1746524407524,-212.81580586,0.00010663,2]
[360053918,1746524410656,-240.2197683,0.00010663,2]
[360053919,1746524413301,-393.40533684,0.00010663,2]
[360053920,1746524545090,-294.32854824,0.00010767,2]
[360053921,1746524548592,-196.46845104,0.00010767,2]
[360053922,1746524552551,-240.48020269,0.00010767,2]
[360053923,1746524559921,-227.70224622,0.00010767,2]
[360053924,1746524563955,-209.4904867,0.00010766,2]
[360053925,1746524567638,-164.4895309,0.00010766,2]
[360053926,1746524574805,-126.0199824,0.00010766,2]
[360053927,1746524574833,-337.5498959,0.00010766,2]
[360053928,1746524584590,-300.0,0.00010765,2]
[360053929,1746524584621,-146.72334057,0.00010766,2]
[360053930,1746524593082,-15.72676353,0.00010766,2]
[360053931,1746524593113,-278.99657704,0.00010766,2]
[360053932,1746524602464,-199.72706408,0.00010766,2]
[360053933,1746524613637,-21.27635888,0.00010766,2]
[360053934,1746524613662,-168.81108092,0.00010766,2]
[360053935,1746524620405,-266.44782443,0.00010766,2]
[360053936,1746524620435,-155.27712225,0.00010766,2]
[360053937,1746524627847,-300.0,0.00010766,2]
[360053940,1746524640097,-44.72287775,0.00010766,2]
[360053941,1746524640128,-178.99387814,0.00010766,2]
[360053942,1746524640151,-500.0,0.00010766,2]
[360053943,1746524640175,-291.37331714,0.00010766,2]
[360053944,1746524640199,-156.97558173,0.00010766,2]
[360053945,1746524640222,-307.29622159,0.00010766,2]
[360053946,1746524642817,-274.47783813,0.00010765,2]
[360053947,1746524650693,-25.52216187,0.00010765,2]
[360053948,1746524650716,-192.70377841,0.00010766,2]
[360053949,1746524650739,-56.25189785,0.00010766,2]
[360053950,1746524654579,-461.87015135,0.00010766,2]
[360053951,1746524654608,-190.0874398,0.00010766,2]
[360053952,1746524654632,-274.47783813,0.00010766,2]
[360053953,1746524654653,-398.24089722,0.00010767,2]
[360053954,1746524657436,-340.86184519,0.00010767,2]
[360053955,1746524667924,-300.0,0.00010767,2]
[360053956,1746524672168,-256.2585812,0.00010767,2]
[360054176,1746525037789,-200.17512853,0.00010774,2]
[360054179,1746525037802,-223.5943786,0.00010774,2]
[360054181,1746525037814,-300.0,0.00010871,2]
[360054183,1746525037825,-500.0,0.00010871,2]
[360054186,1746525037838,-500.0,0.00010871,2]
[360054188,1746525037850,-567.89938781,0.00010871,2]
[360054190,1746525037861,-1200.0,0.00010872,2]
[360054192,1746525037873,-447.66899638,0.00010872,2]
[360054195,1746525037884,-500.0,0.00010872,2]
[360054197,1746525037896,-570.72835375,0.00010872,2]
[360054199,1746525037908,-9043.2380565,0.00010873,2]
[360054201,1746525037918,-1000.0,0.00010875,2]
[360054203,1746525037928,-330.9291263,0.0001166,2]
[360054205,1746525037937,-500.0,0.0001166,2]
[360054207,1746525037947,-151.0,0.0001171,2]
[360054209,1746525037956,-500.0,0.00011717,2]
[360054212,1746525037966,-626.3469364,0.00011717,2]
[360054214,1746525037975,-615.878362,0.00011734,2]
[360054216,1746525037985,-420.0,0.00011948,2]
[360054218,1746525037995,-500.0,0.00011973,2]
[360054220,1746525038004,-500.0,0.00011973,2]
[360054222,1746525038013,-500.0,0.00011973,2]
[360054224,1746525038023,-500.0,0.00011973,2]
[360054258,1746525038330,-500.0,0.00011973,2]
[360054260,1746525038344,-500.0,0.00011973,2]
[360054262,1746525038353,-500.0,0.00011973,2]
[360054263,1746525038363,-500.0,0.00011973,2]
[360054264,1746525038372,-500.0,0.00011973,2]
[360054265,1746525038382,-649.49263093,0.00011973,2]
[360054266,1746525038391,-500.0,0.00011973,2]
[360054267,1746525038400,-500.0,0.00011973,2]
[360054268,1746525038410,-68739.73948442,0.00012,2]
[360054269,1746525038420,-223.59437859,0.00012703,2]
[360054270,1746525038429,-587.0,0.00013131,2]
[360054271,1746525038439,-161.641695,0.00013699,2]
[360054272,1746525038448,-823.0,0.00014431,2]
[360054273,1746525038457,-166.51607458,0.00014747,2]
[360054274,1746525038467,-160.0,0.00015,2]
[360054275,1746525038476,-257.0,0.0001586,2]
[360054276,1746525038485,-549.77113728,0.00016419,2]
[360054277,1746525038495,-546.0,0.00017036,2]
[360054279,1746525038507,-708.0,0.00017036,2]
[360054281,1746525038516,-1619.05252338,0.00017036,2]
[360054283,1746525038528,-621.94747662,0.00017036,2]
[360054285,1746525038539,-404.0,0.00017036,2]
[360054287,1746525038548,-150.288,0.00017036,2]
[360054289,1746525038557,-833.3982872,0.00017139,2]
[360054292,1746525038568,-166.6017128,0.00017139,2]
[360054294,1746525038579,-500.0,0.00017283,2]
[360054296,1746525038588,-1000.0,0.00017452,2]
[360054298,1746525038597,-201.88990851,0.00017452,2]
[360054300,1746525038606,-1000.0,0.00017452,2]
[360054302,1746525038615,-1005.30476882,0.00017452,2]
[360054304,1746525038624,-1000.0,0.00017452,2]
[360054306,1746525038633,-1000.0,0.00017452,2]
[360054308,1746525038643,-1000.0,0.00017452,2]
[360054310,1746525038652,-1000.0,0.00017452,2]
[360054312,1746525038661,-1000.0,0.00017452,2]
[360054314,1746525038670,-1000.0,0.00017452,2]
[360054316,1746525038679,-1000.0,0.00017452,2]
[360054318,1746525038689,-160.0,0.00017896,2]
[360054320,1746525038698,-160.0,0.00017896,2]
[360054322,1746525038707,-212.03916285,0.00017896,2]
[360054324,1746525038717,-160.0,0.00017896,2]
[360054326,1746525038727,-500.0,0.00018193,2]
[360054328,1746525038736,-160.0,0.00018221,2]
[360054330,1746525038744,-643.55515777,0.00018752,2]
[360054332,1746525038754,-500.0,0.00018767,2]
[360054334,1746525038763,-500.0,0.00018767,2]
[360054336,1746525038774,-500.0,0.00018767,2]
[360054338,1746525038783,-500.0,0.00018767,2]
[360054340,1746525038792,-1338.46412822,0.000189,2]
[360054342,1746525038801,-500.0,0.00018985,2]
[360054344,1746525038811,-500.0,0.00018985,2]
[360054346,1746525038820,-500.0,0.0001915,2]
[360054348,1746525038829,-151.0,0.00019178,2]
[360054350,1746525038839,-402.063162,0.00019178,2]
[360054352,1746525038848,-10519.55986084,0.00019232,2]
[360054354,1746525038859,-59712.93526916,0.00019232,2]
[360054356,1746525038868,-152.50607523,0.00019233,2]
[360054358,1746525038877,-500.0,0.00019233,2]
[360054360,1746525038886,-500.0,0.00019233,2]